[Event "Titled Tuesday Blitz January 10 Early 2023"]
[White "Ashraf, Artin"]
[Black "Wahedi, Ahmad Siar"]
[WhiteFideId "22514805"]
[BlackFideId "4651260"]
[WhiteElo "2314"]
[BlackElo "2274"]
[Result "1-0"]
[Round "08"]
[TimeControl "180+2"]
[Date "2023.01.10"]
[WhiteClock "0:00:11"]
[BlackClock "0:00:08"]

1. c4 {[%clk 0:02:59]}  c6 {[%clk 0:02:59]} 2. Nf3 {[%clk 0:02:55]}  d5 {[%clk 0:02:59]} 3. g3 {[%clk 0:02:55]}  Nf6 {[%clk 0:03:00]} 4. Bg2 {[%clk 0:02:54]}  Bf5 {[%clk 0:03:00]} 5. O-O {[%clk 0:02:53]}  e6 {[%clk 0:03:00]} 6. b3 {[%clk 0:02:53]}  h6 {[%clk 0:02:59]} 7. d3 {[%clk 0:02:52]}  Nbd7 {[%clk 0:02:59]} 8. Bb2 {[%clk 0:02:52]}  Be7 {[%clk 0:02:56]} 9. Nbd2 {[%clk 0:02:49]}  O-O {[%clk 0:02:55]} 10. a3 {[%clk 0:02:49]}  Re8 {[%clk 0:02:55]} 11. Re1 {[%clk 0:02:42]}  Bg6 {[%clk 0:02:53]} 12. Ra2 {[%clk 0:02:37]}  b5 {[%clk 0:02:50]} 13. Qa1 {[%clk 0:02:22]}  bxc4 {[%clk 0:02:47]} 14. bxc4 {[%clk 0:02:22]}  Rb8 {[%clk 0:02:40]} 15. Ne5 {[%clk 0:02:03]}  Nxe5 {[%clk 0:02:34]} 16. Bxe5 {[%clk 0:02:04]}  Bd6 {[%clk 0:02:32]} 17. Nf3 {[%clk 0:01:59]}  dxc4 {[%clk 0:02:09]} 18. dxc4 {[%clk 0:01:56]}  Bxe5 {[%clk 0:02:06]} 19. Nxe5 {[%clk 0:01:54]}  Qc7 {[%clk 0:01:49]} 20. Nxc6 {[%clk 0:01:44]}  Rb3 {[%clk 0:01:48]} 21. Rb2 {[%clk 0:01:35]}  Rxb2 {[%clk 0:01:37]} 22. Qxb2 {[%clk 0:01:36]}  Ne4 {[%clk 0:01:34]} 23. Ne5 {[%clk 0:01:31]}  Bh7 {[%clk 0:01:30]} 24. Rc1 {[%clk 0:01:25]}  Rb8 {[%clk 0:01:29]} 25. Qa1 {[%clk 0:01:14]}  Nd2 {[%clk 0:01:19]} 26. Qc3 {[%clk 0:01:00]}  Nb3 {[%clk 0:01:16]} 27. Rd1 {[%clk 0:00:53]}  Nc5 {[%clk 0:01:16]} 28. Nc6 {[%clk 0:00:52]}  Re8 {[%clk 0:01:06]} 29. Qe3 {[%clk 0:00:27]}  Na4 {[%clk 0:00:15]} 30. c5 {[%clk 0:00:22]}  Bg6 {[%clk 0:00:09]} 31. h4 {[%clk 0:00:18]}  h5 {[%clk 0:00:08]} 32. Rd6 {[%clk 0:00:17]}  Kf8 {[%clk 0:00:05]} 33. Qd4 {[%clk 0:00:16]}  e5 {[%clk 0:00:02]} 34. Qxa4 {[%clk 0:00:15]}  e4 {[%clk 0:00:03]} 35. Qxa7 {[%clk 0:00:14]}  Qc8 {[%clk 0:00:03]} 36. Qb6 {[%clk 0:00:12]}  Qf5 {[%clk 0:00:02]} 37. Rd8 {[%clk 0:00:11]}  Qe6 {[%clk 0:00:02]} 38. Rxe8+ {[%clk 0:00:11]}  Qxe8 {[%clk 0:00:01]} 39. Qd8 {[%clk 0:00:12]}  Qxd8 {[%clk 0:00:02]} 40. Nxd8 {[%clk 0:00:11]}  Ke8 {[%clk 0:00:03]} 41. Nc6 {[%clk 0:00:11]}  f5 {[%clk 0:00:03]} 42. Ne5 {[%clk 0:00:11]}  Bh7 {[%clk 0:00:03]} 43. Nc4 {[%clk 0:00:12]}  Kd8 {[%clk 0:00:04]} 44. Nd6 {[%clk 0:00:11]}  Kc7 {[%clk 0:00:05]} 45. Ne8+ {[%clk 0:00:11]}  Kc6 {[%clk 0:00:05]} 46. Nxg7 {[%clk 0:00:12]}  Kxc5 {[%clk 0:00:05]} 47. Nxh5 {[%clk 0:00:13]}  Bg6 {[%clk 0:00:04]} 48. Nf4 {[%clk 0:00:11]}  Be8 {[%clk 0:00:04]} 49. e3 {[%clk 0:00:12]}  Kb5 {[%clk 0:00:04]} 50. Bh3 {[%clk 0:00:12]}  Ka4 {[%clk 0:00:05]} 51. Bxf5 {[%clk 0:00:12]}  Kxa3 {[%clk 0:00:05]} 52. Bxe4 {[%clk 0:00:12]}  Kb4 {[%clk 0:00:06]} 53. h5 {[%clk 0:00:13]}  Kc5 {[%clk 0:00:07]} 54. h6 {[%clk 0:00:13]}  Kd6 {[%clk 0:00:05]} 55. h7 {[%clk 0:00:14]}  Ke5 {[%clk 0:00:06]} 56. h8=Q+ {[%clk 0:00:11]}  Kxe4 {[%clk 0:00:07]} 57. Qxe8+ {[%clk 0:00:12]}  Kf3 {[%clk 0:00:08]} 58. Qc6+ {[%clk 0:00:11]}  Kg4 {[%clk 0:00:08]} 59. Kg2 {[%clk 0:00:11]}  Kg5 {[%clk 0:00:08]} 60. Qg6# {[%clk 0:00:11]} 1-0


[Site "https://www.chess.com"]

[Event "Titled Tuesday Blitz January 10 Early 2023"]
[White "Jakubowski, Krzysztof"]
[Black "Gjestemoen-VonHirsch, Andre"]
[WhiteFideId "1112848"]
[BlackFideId "1539531"]
[WhiteElo "2486"]
[BlackElo "2314"]
[Result "1-0"]
[Round "08"]
[TimeControl "180+2"]
[Date "2023.01.10"]
[WhiteClock "0:00:53"]
[BlackClock "0:00:05"]

1. e4 {[%clk 0:02:56]}  c5 {[%clk 0:02:59]} 2. Nf3 {[%clk 0:02:55]}  Nc6 {[%clk 0:02:59]} 3. d4 {[%clk 0:02:55]}  cxd4 {[%clk 0:02:59]} 4. Nxd4 {[%clk 0:02:56]}  g6 {[%clk 0:02:55]} 5. Nc3 {[%clk 0:02:53]}  Bg7 {[%clk 0:02:55]} 6. Be3 {[%clk 0:02:53]}  Nf6 {[%clk 0:02:54]} 7. Bc4 {[%clk 0:02:50]}  O-O {[%clk 0:02:54]} 8. Bb3 {[%clk 0:02:50]}  Re8 {[%clk 0:02:54]} 9. O-O {[%clk 0:02:40]}  d6 {[%clk 0:02:48]} 10. h3 {[%clk 0:02:37]}  Bd7 {[%clk 0:02:44]} 11. Qd2 {[%clk 0:02:35]}  a6 {[%clk 0:02:40]} 12. Rad1 {[%clk 0:02:35]}  b5 {[%clk 0:02:39]} 13. a3 {[%clk 0:02:26]}  Na5 {[%clk 0:02:37]} 14. Rfe1 {[%clk 0:02:26]}  Nxb3 {[%clk 0:02:35]} 15. Nxb3 {[%clk 0:02:25]}  Qc7 {[%clk 0:02:35]} 16. Bh6 {[%clk 0:02:22]}  Bc6 {[%clk 0:02:29]} 17. Bxg7 {[%clk 0:02:21]}  Kxg7 {[%clk 0:02:28]} 18. Re3 {[%clk 0:02:16]}  a5 {[%clk 0:02:23]} 19. Rde1 {[%clk 0:02:12]}  b4 {[%clk 0:01:48]} 20. axb4 {[%clk 0:02:07]}  axb4 {[%clk 0:01:49]} 21. Nd5 {[%clk 0:02:07]}  Bxd5 {[%clk 0:01:49]} 22. exd5 {[%clk 0:02:07]}  Rac8 {[%clk 0:01:48]} 23. R1e2 {[%clk 0:02:03]}  Qc4 {[%clk 0:01:46]} 24. Rd3 {[%clk 0:01:59]}  e6 {[%clk 0:01:03]} 25. Rd4 {[%clk 0:01:52]}  Qc7 {[%clk 0:00:46]} 26. dxe6 {[%clk 0:01:50]}  Rxe6 {[%clk 0:00:46]} 27. Rxe6 {[%clk 0:01:42]}  fxe6 {[%clk 0:00:47]} 28. Rxb4 {[%clk 0:01:36]}  Qxc2 {[%clk 0:00:41]} 29. Rb7+ {[%clk 0:01:35]}  Kg8 {[%clk 0:00:35]} 30. Qf4 {[%clk 0:01:02]}  Qb1+ {[%clk 0:00:11]} 31. Kh2 {[%clk 0:01:01]}  Qf5 {[%clk 0:00:11]} 32. Qh6 {[%clk 0:00:53]}  Qe5+ {[%clk 0:00:05]} 33. f4 {[%clk 0:00:53]} 1-0


[Site "https://www.chess.com"]

[Event "Titled Tuesday Blitz January 10 Early 2023"]
[White "Mohamed Anees M"]
[Black "Jaskolka, Tomasz"]
[WhiteFideId "35065815"]
[BlackFideId "1170791"]
[WhiteElo "2315"]
[BlackElo "2238"]
[Result "1-0"]
[Round "08"]
[TimeControl "180+2"]
[Date "2023.01.10"]
[WhiteClock "0:00:52"]
[BlackClock "0:00:35"]

1. d4 {[%clk 0:03:00]}  d5 {[%clk 0:02:57]} 2. c4 {[%clk 0:02:59]}  c6 {[%clk 0:02:58]} 3. Nf3 {[%clk 0:02:59]}  Nf6 {[%clk 0:02:58]} 4. e3 {[%clk 0:02:59]}  a6 {[%clk 0:02:56]} 5. b3 {[%clk 0:02:31]}  Bg4 {[%clk 0:02:54]} 6. h3 {[%clk 0:02:29]}  Bh5 {[%clk 0:02:52]} 7. Bb2 {[%clk 0:02:30]}  e6 {[%clk 0:02:52]} 8. Bd3 {[%clk 0:02:29]}  Bd6 {[%clk 0:02:49]} 9. Nbd2 {[%clk 0:01:48]}  Nbd7 {[%clk 0:02:49]} 10. O-O {[%clk 0:01:47]}  O-O {[%clk 0:02:48]} 11. Qc2 {[%clk 0:01:47]}  Bg6 {[%clk 0:02:44]} 12. Ne5 {[%clk 0:01:44]}  Bxd3 {[%clk 0:02:27]} 13. Qxd3 {[%clk 0:01:44]}  dxc4 {[%clk 0:02:25]} 14. Ndxc4 {[%clk 0:01:40]}  Bc7 {[%clk 0:02:16]} 15. Rfd1 {[%clk 0:01:38]}  Nb6 {[%clk 0:02:10]} 16. e4 {[%clk 0:01:34]}  Nxc4 {[%clk 0:02:08]} 17. Nxc4 {[%clk 0:01:33]}  Qd7 {[%clk 0:02:04]} 18. Qf3 {[%clk 0:01:29]}  Ne8 {[%clk 0:01:24]} 19. d5 {[%clk 0:01:16]}  cxd5 {[%clk 0:01:17]} 20. exd5 {[%clk 0:01:17]}  exd5 {[%clk 0:01:16]} 21. Rxd5 {[%clk 0:01:18]}  Qc6 {[%clk 0:01:14]} 22. Rad1 {[%clk 0:01:14]}  b5 {[%clk 0:01:05]} 23. Ne3 {[%clk 0:01:09]}  Nf6 {[%clk 0:01:05]} 24. Bxf6 {[%clk 0:01:05]}  Qxf6 {[%clk 0:01:06]} 25. Qxf6 {[%clk 0:01:03]}  gxf6 {[%clk 0:01:07]} 26. Rd7 {[%clk 0:01:03]}  Be5 {[%clk 0:01:06]} 27. Nd5 {[%clk 0:01:01]}  Kg7 {[%clk 0:00:48]} 28. f4 {[%clk 0:01:01]}  Bb2 {[%clk 0:00:47]} 29. Nc7 {[%clk 0:01:01]}  Rac8 {[%clk 0:00:44]} 30. Ne6+ {[%clk 0:01:00]}  Kg6 {[%clk 0:00:44]} 31. Nxf8+ {[%clk 0:01:00]}  Rxf8 {[%clk 0:00:45]} 32. Rd8 {[%clk 0:01:01]}  Rxd8 {[%clk 0:00:40]} 33. Rxd8 {[%clk 0:01:00]}  Kf5 {[%clk 0:00:41]} 34. g3 {[%clk 0:00:59]}  h5 {[%clk 0:00:41]} 35. Ra8 {[%clk 0:00:58]}  h4 {[%clk 0:00:40]} 36. Kg2 {[%clk 0:00:55]}  hxg3 {[%clk 0:00:41]} 37. Kxg3 {[%clk 0:00:56]}  Bc1 {[%clk 0:00:41]} 38. Rxa6 {[%clk 0:00:55]}  Bxf4+ {[%clk 0:00:41]} 39. Kf3 {[%clk 0:00:55]}  Bd2 {[%clk 0:00:37]} 40. a3 {[%clk 0:00:53]}  Ke5 {[%clk 0:00:36]} 41. Rb6 {[%clk 0:00:53]}  Kd4 {[%clk 0:00:35]} 42. Rxb5 {[%clk 0:00:52]}  Kc3 {[%clk 0:00:35]} 43. a4 {[%clk 0:00:52]} 1-0


[Site "https://www.chess.com"]

[Event "Titled Tuesday Blitz January 10 Early 2023"]
[White "Golizadeh, Asghar"]
[Black "Royal, Shreyas"]
[WhiteFideId "12505269"]
[BlackFideId "448869"]
[WhiteElo "2455"]
[BlackElo "2438"]
[Result "0-1"]
[Round "08"]
[TimeControl "180+2"]
[Date "2023.01.10"]
[WhiteClock "0:00:03"]
[BlackClock "0:01:06"]

1. Nf3 {[%clk 0:03:00]}  d5 {[%clk 0:02:57]} 2. g3 {[%clk 0:02:59]}  Nf6 {[%clk 0:02:57]} 3. Bg2 {[%clk 0:03:00]}  e6 {[%clk 0:02:57]} 4. O-O {[%clk 0:03:00]}  Be7 {[%clk 0:02:57]} 5. c4 {[%clk 0:03:01]}  O-O {[%clk 0:02:57]} 6. Nc3 {[%clk 0:03:01]}  c6 {[%clk 0:02:55]} 7. d4 {[%clk 0:03:01]}  dxc4 {[%clk 0:02:52]} 8. Ne5 {[%clk 0:02:57]}  Nbd7 {[%clk 0:02:52]} 9. Nxc4 {[%clk 0:02:57]}  c5 {[%clk 0:02:52]} 10. dxc5 {[%clk 0:02:56]}  Nxc5 {[%clk 0:02:53]} 11. Qc2 {[%clk 0:02:56]}  Bd7 {[%clk 0:02:44]} 12. Bf4 {[%clk 0:02:55]}  Bc6 {[%clk 0:02:29]} 13. Rad1 {[%clk 0:02:53]}  Qc8 {[%clk 0:02:23]} 14. Nd6 {[%clk 0:02:38]}  Bxd6 {[%clk 0:02:21]} 15. Bxd6 {[%clk 0:02:38]}  Bxg2 {[%clk 0:02:21]} 16. Kxg2 {[%clk 0:02:31]}  Qc6+ {[%clk 0:02:21]} 17. f3 {[%clk 0:02:30]}  Rfd8 {[%clk 0:02:19]} 18. Bxc5 {[%clk 0:02:28]}  Qxc5 {[%clk 0:02:20]} 19. Rxd8+ {[%clk 0:02:28]}  Rxd8 {[%clk 0:02:19]} 20. Rd1 {[%clk 0:02:28]}  Nd5 {[%clk 0:02:18]} 21. Qd2 {[%clk 0:01:50]}  h6 {[%clk 0:02:17]} 22. Kh1 {[%clk 0:01:40]}  Re8 {[%clk 0:01:54]} 23. Nxd5 {[%clk 0:01:39]}  exd5 {[%clk 0:01:54]} 24. Qxd5 {[%clk 0:01:37]}  Qf2 {[%clk 0:01:46]} 25. Qb5 {[%clk 0:01:11]}  Qxe2 {[%clk 0:01:32]} 26. Qxe2 {[%clk 0:01:10]}  Rxe2 {[%clk 0:01:33]} 27. Rd8+ {[%clk 0:01:10]}  Kh7 {[%clk 0:01:31]} 28. Rd7 {[%clk 0:01:11]}  Rxb2 {[%clk 0:01:30]} 29. Rxf7 {[%clk 0:01:10]}  Kg6 {[%clk 0:01:30]} 30. Rc7 {[%clk 0:01:10]}  a5 {[%clk 0:01:24]} 31. h4 {[%clk 0:01:09]}  b5 {[%clk 0:01:22]} 32. Rc5 {[%clk 0:01:05]}  a4 {[%clk 0:01:20]} 33. Rc6+ {[%clk 0:00:28]}  Kh7 {[%clk 0:01:18]} 34. g4 {[%clk 0:00:12]}  b4 {[%clk 0:01:14]} 35. g5 {[%clk 0:00:12]}  hxg5 {[%clk 0:01:12]} 36. hxg5 {[%clk 0:00:13]}  Rxa2 {[%clk 0:01:11]} 37. f4 {[%clk 0:00:10]}  b3 {[%clk 0:01:09]} 38. Rb6 {[%clk 0:00:09]}  Rc2 {[%clk 0:01:08]} 39. f5 {[%clk 0:00:08]}  b2 {[%clk 0:01:08]} 40. g6+ {[%clk 0:00:07]}  Kh6 {[%clk 0:01:08]} 41. f6 {[%clk 0:00:07]}  gxf6 {[%clk 0:01:06]} 42. Rb4 {[%clk 0:00:04]}  Rc1+ {[%clk 0:01:05]} 43. Kg2 {[%clk 0:00:03]}  b1=Q {[%clk 0:01:06]} 0-1


[Site "https://www.chess.com"]

[Event "Titled Tuesday Blitz January 10 Early 2023"]
[White "Levitan, Caleb Levi"]
[Black "Fiorito, Joaquin"]
[WhiteFideId "14332620"]
[BlackFideId "180173"]
[WhiteElo "2129"]
[BlackElo "2405"]
[Result "0-1"]
[Round "08"]
[TimeControl "180+2"]
[Date "2023.01.10"]
[WhiteClock "0:00:01"]
[BlackClock "0:01:26"]

1. d4 {[%clk 0:03:00]}  Nf6 {[%clk 0:02:59]} 2. Bf4 {[%clk 0:03:00]}  d5 {[%clk 0:02:59]} 3. e3 {[%clk 0:03:00]}  c5 {[%clk 0:03:00]} 4. c3 {[%clk 0:02:57]}  Nc6 {[%clk 0:03:00]} 5. Nd2 {[%clk 0:02:57]}  Bf5 {[%clk 0:03:00]} 6. Qb3 {[%clk 0:02:54]}  Qc8 {[%clk 0:02:55]} 7. c4 {[%clk 0:02:48]}  dxc4 {[%clk 0:02:48]} 8. Bxc4 {[%clk 0:02:45]}  e6 {[%clk 0:02:48]} 9. Ngf3 {[%clk 0:02:44]}  a6 {[%clk 0:02:43]} 10. Bd3 {[%clk 0:02:12]}  Bxd3 {[%clk 0:02:39]} 11. Qxd3 {[%clk 0:02:11]}  cxd4 {[%clk 0:02:24]} 12. Nxd4 {[%clk 0:02:07]}  Nxd4 {[%clk 0:02:20]} 13. exd4 {[%clk 0:02:07]}  Nd5 {[%clk 0:02:17]} 14. Qg3 {[%clk 0:01:35]}  Qd7 {[%clk 0:02:01]} 15. O-O {[%clk 0:01:28]}  Nxf4 {[%clk 0:02:01]} 16. Qxf4 {[%clk 0:01:26]}  Bd6 {[%clk 0:02:02]} 17. Qf3 {[%clk 0:01:17]}  O-O {[%clk 0:02:02]} 18. Ne4 {[%clk 0:01:17]}  Be7 {[%clk 0:02:02]} 19. Rfd1 {[%clk 0:01:13]}  Rac8 {[%clk 0:02:01]} 20. d5 {[%clk 0:01:08]}  Rfd8 {[%clk 0:01:39]} 21. d6 {[%clk 0:00:55]}  Bf8 {[%clk 0:01:39]} 22. Qg3 {[%clk 0:00:11]}  Kh8 {[%clk 0:01:38]} 23. Rac1 {[%clk 0:00:09]}  Rxc1 {[%clk 0:01:27]} 24. Rxc1 {[%clk 0:00:09]}  f5 {[%clk 0:01:27]} 25. Nc5 {[%clk 0:00:03]}  Rc8 {[%clk 0:01:28]} 26. Qe3 {[%clk 0:00:01]}  Qxd6 {[%clk 0:01:26]} 0-1


[Site "https://www.chess.com"]

[Event "Titled Tuesday Blitz January 10 Early 2023"]
[White "Sovetbekova, Nurai"]
[Black "Czernek, Tymon"]
[WhiteFideId "13801910"]
[BlackFideId "1199510"]
[WhiteElo "1764"]
[BlackElo "2314"]
[Result "0-1"]
[Round "08"]
[TimeControl "180+2"]
[Date "2023.01.10"]
[WhiteClock "0:00:37"]
[BlackClock "0:00:24"]

1. d4 {[%clk 0:03:00]}  d5 {[%clk 0:02:40]} 2. c4 {[%clk 0:03:00]}  e6 {[%clk 0:02:41]} 3. Nf3 {[%clk 0:02:59]}  Nf6 {[%clk 0:02:38]} 4. g3 {[%clk 0:02:58]}  Bb4+ {[%clk 0:02:32]} 5. Nbd2 {[%clk 0:02:58]}  O-O {[%clk 0:02:31]} 6. Bg2 {[%clk 0:02:57]}  dxc4 {[%clk 0:02:31]} 7. Qc2 {[%clk 0:02:56]}  b5 {[%clk 0:02:05]} 8. a4 {[%clk 0:02:47]}  Bb7 {[%clk 0:01:41]} 9. axb5 {[%clk 0:02:44]}  Nbd7 {[%clk 0:01:36]} 10. O-O {[%clk 0:02:42]}  Nb6 {[%clk 0:01:36]} 11. Nxc4 {[%clk 0:02:41]}  Qd5 {[%clk 0:01:26]} 12. Nxb6 {[%clk 0:02:02]}  axb6 {[%clk 0:01:27]} 13. Rxa8 {[%clk 0:02:01]}  Bxa8 {[%clk 0:01:26]} 14. Qxc7 {[%clk 0:01:53]}  Qxb5 {[%clk 0:01:26]} 15. Bg5 {[%clk 0:01:45]}  Bxf3 {[%clk 0:01:23]} 16. Bxf6 {[%clk 0:01:30]}  Bxg2 {[%clk 0:01:22]} 17. Bxg7 {[%clk 0:01:25]}  Bxf1 {[%clk 0:01:13]} 18. Bxf8 {[%clk 0:01:24]}  Qd5 {[%clk 0:01:04]} 19. f3 {[%clk 0:01:15]}  Qxd4+ {[%clk 0:01:01]} 20. Kxf1 {[%clk 0:01:15]}  Bxf8 {[%clk 0:01:01]} 21. b3 {[%clk 0:01:12]}  Bc5 {[%clk 0:01:01]} 22. Kg2 {[%clk 0:01:08]}  h6 {[%clk 0:00:41]} 23. Qc8+ {[%clk 0:01:05]}  Kg7 {[%clk 0:00:39]} 24. Qb8 {[%clk 0:01:03]}  Qf2+ {[%clk 0:00:37]} 25. Kh3 {[%clk 0:01:02]}  Qxe2 {[%clk 0:00:38]} 26. Qb7 {[%clk 0:01:01]}  Qf1+ {[%clk 0:00:35]} 27. Kg4 {[%clk 0:01:00]}  Qb1 {[%clk 0:00:33]} 28. Qc7 {[%clk 0:00:53]}  Qf5+ {[%clk 0:00:32]} 29. Kh4 {[%clk 0:00:52]}  Kg6 {[%clk 0:00:24]} 30. g4 {[%clk 0:00:38]}  Bf2+ {[%clk 0:00:24]} 31. Kh3 {[%clk 0:00:37]}  Qxf3+ {[%clk 0:00:24]} 0-1


[Site "https://www.chess.com"]

[Event "Titled Tuesday Blitz January 10 Early 2023"]
[White "Nogerbek, Kazybek"]
[Black "Aaditya Dhingra"]
[WhiteFideId "13710427"]
[BlackFideId "25678191"]
[WhiteElo "2474"]
[BlackElo "2027"]
[Result "0-1"]
[Round "08"]
[TimeControl "180+2"]
[Date "2023.01.10"]
[WhiteClock "0:00:07"]
[BlackClock "0:00:07"]

1. d4 {[%clk 0:03:00]}  d5 {[%clk 0:02:58]} 2. Nf3 {[%clk 0:02:59]}  Nf6 {[%clk 0:02:58]} 3. c4 {[%clk 0:03:00]}  e6 {[%clk 0:02:58]} 4. Nc3 {[%clk 0:03:00]}  c6 {[%clk 0:02:58]} 5. Qd3 {[%clk 0:02:56]}  dxc4 {[%clk 0:02:53]} 6. Qxc4 {[%clk 0:02:57]}  b5 {[%clk 0:02:53]} 7. Qd3 {[%clk 0:02:56]}  Bb7 {[%clk 0:02:51]} 8. g3 {[%clk 0:02:53]}  a6 {[%clk 0:02:49]} 9. Bg2 {[%clk 0:02:44]}  c5 {[%clk 0:02:48]} 10. O-O {[%clk 0:02:43]}  Nbd7 {[%clk 0:02:44]} 11. Rd1 {[%clk 0:02:43]}  c4 {[%clk 0:02:41]} 12. Qc2 {[%clk 0:02:42]}  Rc8 {[%clk 0:02:36]} 13. a3 {[%clk 0:02:42]}  Be7 {[%clk 0:02:27]} 14. e4 {[%clk 0:02:41]}  O-O {[%clk 0:02:27]} 15. h3 {[%clk 0:02:41]}  Bc6 {[%clk 0:02:06]} 16. Be3 {[%clk 0:02:36]}  Qc7 {[%clk 0:02:03]} 17. Rd2 {[%clk 0:02:19]}  Qb7 {[%clk 0:01:59]} 18. d5 {[%clk 0:02:18]}  exd5 {[%clk 0:01:58]} 19. Nd4 {[%clk 0:02:17]}  Ne5 {[%clk 0:01:43]} 20. Nxc6 {[%clk 0:02:16]}  Qxc6 {[%clk 0:01:42]} 21. Nxd5 {[%clk 0:01:53]}  Nxd5 {[%clk 0:01:39]} 22. Rxd5 {[%clk 0:01:53]}  Nd3 {[%clk 0:01:37]} 23. e5 {[%clk 0:01:46]}  Qg6 {[%clk 0:01:28]} 24. a4 {[%clk 0:01:29]}  b4 {[%clk 0:01:23]} 25. b3 {[%clk 0:01:25]}  Nxe5 {[%clk 0:01:00]} 26. Be4 {[%clk 0:01:01]}  Qe6 {[%clk 0:00:56]} 27. Rad1 {[%clk 0:00:58]}  g6 {[%clk 0:00:51]} 28. Bf4 {[%clk 0:00:48]}  Nd3 {[%clk 0:00:48]} 29. Bxd3 {[%clk 0:00:47]}  cxd3 {[%clk 0:00:43]} 30. Qxd3 {[%clk 0:00:45]}  Rc3 {[%clk 0:00:41]} 31. Qd4 {[%clk 0:00:44]}  Bf6 {[%clk 0:00:37]} 32. Qxb4 {[%clk 0:00:43]}  Qxh3 {[%clk 0:00:31]} 33. Rd6 {[%clk 0:00:42]}  Qg4 {[%clk 0:00:23]} 34. Qb7 {[%clk 0:00:18]}  Bg5 {[%clk 0:00:19]} 35. Be5 {[%clk 0:00:15]}  Rc5 {[%clk 0:00:17]} 36. Ba1 {[%clk 0:00:07]}  h5 {[%clk 0:00:12]} 37. R6d4 {[%clk 0:00:06]}  Qf5 {[%clk 0:00:11]} 38. Rd5 {[%clk 0:00:05]}  Rxd5 {[%clk 0:00:10]} 39. Qxd5 {[%clk 0:00:06]}  Qxd5 {[%clk 0:00:09]} 40. Rxd5 {[%clk 0:00:07]}  f6 {[%clk 0:00:07]} 0-1


[Site "https://www.chess.com"]

[Event "Titled Tuesday Blitz January 10 Early 2023"]
[White "Goryachkina, Aleksandra"]
[Black "Parpiev, Isaak"]
[WhiteFideId "4147103"]
[BlackFideId "34281576"]
[WhiteElo "2571"]
[BlackElo "2167"]
[Result "1/2-1/2"]
[Round "08"]
[TimeControl "180+2"]
[Date "2023.01.10"]
[WhiteClock "0:00:04"]
[BlackClock "0:00:05"]

1. e4 {[%clk 0:02:59]}  e5 {[%clk 0:02:59]} 2. Nc3 {[%clk 0:02:59]}  Nc6 {[%clk 0:02:59]} 3. Nf3 {[%clk 0:02:58]}  Nf6 {[%clk 0:02:58]} 4. d4 {[%clk 0:02:58]}  d6 {[%clk 0:02:59]} 5. dxe5 {[%clk 0:02:48]}  Nxe5 {[%clk 0:02:58]} 6. Nxe5 {[%clk 0:02:49]}  dxe5 {[%clk 0:02:59]} 7. Qxd8+ {[%clk 0:02:49]}  Kxd8 {[%clk 0:03:00]} 8. Bc4 {[%clk 0:02:49]}  Ke8 {[%clk 0:03:00]} 9. f3 {[%clk 0:02:37]}  c6 {[%clk 0:02:59]} 10. Be3 {[%clk 0:02:35]}  Nd7 {[%clk 0:02:58]} 11. O-O-O {[%clk 0:02:15]}  a5 {[%clk 0:02:57]} 12. a4 {[%clk 0:02:07]}  Bc5 {[%clk 0:02:55]} 13. Rhe1 {[%clk 0:01:48]}  Bxe3+ {[%clk 0:02:47]} 14. Rxe3 {[%clk 0:01:49]}  Nc5 {[%clk 0:02:45]} 15. g3 {[%clk 0:01:48]}  Ke7 {[%clk 0:02:41]} 16. b3 {[%clk 0:01:45]}  f6 {[%clk 0:02:37]} 17. Ree1 {[%clk 0:01:27]}  h5 {[%clk 0:02:27]} 18. h4 {[%clk 0:01:21]}  Be6 {[%clk 0:02:25]} 19. Bxe6 {[%clk 0:01:15]}  Nxe6 {[%clk 0:02:26]} 20. Ne2 {[%clk 0:01:14]}  Rad8 {[%clk 0:02:19]} 21. f4 {[%clk 0:01:10]}  Rxd1+ {[%clk 0:02:04]} 22. Rxd1 {[%clk 0:01:06]}  Rd8 {[%clk 0:02:02]} 23. Rxd8 {[%clk 0:01:04]}  Kxd8 {[%clk 0:02:02]} 24. Kd2 {[%clk 0:01:04]}  Ke7 {[%clk 0:02:00]} 25. Ke3 {[%clk 0:01:04]}  Nc5 {[%clk 0:01:58]} 26. Ng1 {[%clk 0:00:55]}  Kd6 {[%clk 0:01:48]} 27. Nf3 {[%clk 0:00:50]}  Nd7 {[%clk 0:01:43]} 28. Nd2 {[%clk 0:00:48]}  Kc5 {[%clk 0:01:36]} 29. Kd3 {[%clk 0:00:45]}  b5 {[%clk 0:01:30]} 30. c3 {[%clk 0:00:35]}  Kd6 {[%clk 0:01:00]} 31. Ke3 {[%clk 0:00:27]}  Nb6 {[%clk 0:00:44]} 32. Kd3 {[%clk 0:00:20]}  bxa4 {[%clk 0:00:20]} 33. bxa4 {[%clk 0:00:21]}  Nxa4 {[%clk 0:00:18]} 34. Nc4+ {[%clk 0:00:21]}  Kc5 {[%clk 0:00:11]} 35. Nxa5 {[%clk 0:00:21]}  Kb5 {[%clk 0:00:09]} 36. Nb3 {[%clk 0:00:15]}  Nc5+ {[%clk 0:00:08]} 37. Kc2 {[%clk 0:00:07]}  Nxe4 {[%clk 0:00:07]} 38. fxe5 {[%clk 0:00:07]}  fxe5 {[%clk 0:00:07]} 39. Nc1 {[%clk 0:00:07]}  Nxg3 {[%clk 0:00:07]} 40. Nd3 {[%clk 0:00:07]}  e4 {[%clk 0:00:07]} 41. Nf4 {[%clk 0:00:08]}  e3 {[%clk 0:00:07]} 42. Kd3 {[%clk 0:00:07]}  e2 {[%clk 0:00:07]} 43. Kd2 {[%clk 0:00:07]}  Kc4 {[%clk 0:00:08]} 44. Ne6 {[%clk 0:00:07]}  Kd5 {[%clk 0:00:05]} 45. Nxg7 {[%clk 0:00:07]}  Ke5 {[%clk 0:00:05]} 46. Ne8 {[%clk 0:00:05]}  Kf4 {[%clk 0:00:04]} 47. Nd6 {[%clk 0:00:05]}  Kf3 {[%clk 0:00:04]} 48. Ke1 {[%clk 0:00:04]}  Kg4 {[%clk 0:00:04]} 49. Nc4 {[%clk 0:00:04]}  Kxh4 {[%clk 0:00:04]} 50. Ne5 {[%clk 0:00:05]}  Kg5 {[%clk 0:00:04]} 51. Nxc6 {[%clk 0:00:04]}  h4 {[%clk 0:00:05]} 52. Nd4 {[%clk 0:00:04]}  h3 {[%clk 0:00:04]} 53. Kf2 {[%clk 0:00:03]}  h2 {[%clk 0:00:03]} 54. Nf3+ {[%clk 0:00:03]}  Kf4 {[%clk 0:00:03]} 55. Nxh2 {[%clk 0:00:03]}  Ne4+ {[%clk 0:00:04]} 56. Kxe2 {[%clk 0:00:04]}  Nxc3+ {[%clk 0:00:05]} 1/2-1/2


[Site "https://www.chess.com"]